fUSD/lending_fUSD_20240528
["ID","MTS","AMOUNT","RATE_DAILY","PERIOD"]
[328119364,1716895832917,-160.16652271,0.00012998,2]
[328119365,1716895832926,-268.36796615,0.00012998,2]
[328119366,1716895832937,-159.88107856,0.00012998,2]
[328119367,1716895832946,-645.00016634,0.00012998,2]
[328119368,1716895832955,-155.0,0.00012998,2]
[328119369,1716895832965,-4748.79596388,0.00012999,2]
[328119370,1716895832974,-1063.62414582,0.00012999,3]
[328119371,1716895832983,-73687.27248783,0.00013,2]
[328119372,1716895832995,-2806.87280344,0.00013,2]
[328119373,1716895833006,-11653.0382456,0.00013,2]
[328119374,1716895833018,-1910.03129286,0.00013,2]
[328119375,1716895833029,-707.112479,0.00013,2]
[328119376,1716895833040,-659.47,0.00013,2]
[328119377,1716895833052,-833.79793316,0.00013,2]
[328119378,1716895833064,-318.86689986,0.00013,2]
[328119379,1716895833075,-505.38615579,0.00013,2]
[328119380,1716895833087,-253.92241788,0.00013,2]
[328119381,1716895833099,-331.9629089,0.00013,2]
[328119382,1716895833110,-240255.00000017,0.00013,2]
[328119383,1716895833124,-11236.20296359,0.00013,2]
[328119387,1716895838062,-445.713,0.00012658,2]
[328119388,1716895838072,-1395.77010729,0.00012989,2]
[328119389,1716895838085,-10372.90177631,0.00012989,2]
[328119390,1716895838094,-10710.74517637,0.00012991,2]
[328119391,1716895838106,-2132.16853283,0.00012991,2]
[328119392,1716895838116,-13917.1555348,0.00012991,2]
[328119393,1716895838128,-942541.83943179,0.00013,2]
[328119394,1716895838140,-68754.42684931,0.00013,2]
[328119395,1716895838483,-41458.46570871,0.00013,2]
[328119398,1716895838496,-655.43396062,0.00013,2]
[328119405,1716895842868,-1224.0,0.00012658,2]
[328119407,1716895842882,-131881.50235483,0.00013,2]
[328119410,1716895842894,-16883.49600002,0.00013,2]
[328119413,1716895842906,-31454.68212325,0.00013,2]
[328119415,1716895842921,-1249.52822486,0.00013,2]
[328119442,1716895843180,-4500.0,0.00013,2]
[328119448,1716895843192,-5003.48713317,0.00013,2]
[328119453,1716895843205,-7441.11693537,0.00013,2]
[328119457,1716895843218,-9964.63341854,0.00013,2]
[328119461,1716895843231,-31134.80433157,0.00013,2]
[328119549,1716895843653,-491.5758815,0.00013,2]
[328119553,1716895843666,-837.85090234,0.00013,2]
[328119557,1716895843678,-2850.0,0.00013,2]
[328119560,1716895843690,-769.61865015,0.00013,2]
[328119563,1716895843702,-1381.05676272,0.00013,2]
[328119567,1716895843714,-7062.5,0.00013,2]
[328119570,1716895843725,-19236.37115591,0.00013,2]
[328119574,1716895843737,-14611.68000001,0.00013,2]
[328119577,1716895843749,-718.92005062,0.00013,2]
[328119666,1716895844626,-1925.8559374,0.00013,2]
[328119781,1716895846066,-614.0,0.00012658,2]
[328119782,1716895846076,-5386.02408429,0.00013,2]
[328119783,1716895846089,-413118.93705922,0.00013,2]
[328119784,1716895846100,-3512.73300096,0.00013,2]
[328119785,1716895846111,-2807.15705431,0.00013,2]
[328119786,1716895846123,-548.913,0.00013,2]
[328119788,1716895846373,-1188.35114104,0.00013,2]
[328119789,1716895846386,-8708.32411434,0.00013,2]
[328119791,1716895928006,400.0,0.000123,4]
[328119792,1716895930126,800.0,0.000124,4]
[328119793,1716895932255,1200.0,0.000125,4]
[328119794,1716895934345,1600.0,0.000126,4]
[328119795,1716895936432,2000.0,0.000127,4]
[328119796,1716895938563,400.0,0.000128,4]
[328119797,1716895940659,400.0,0.000129,4]
[328119798,1716896027271,-19517.36642834,0.00011597,2]
[328119799,1716896027302,-167.29,0.00011598,2]
[328119800,1716896027334,-250.0,0.00011863,2]
[328119801,1716896027363,-904.0,0.00011866,2]
[328119802,1716896027392,-1500.0,0.00011868,2]
[328119803,1716896027431,-250.0,0.00011876,2]
[328119804,1716896027473,-1089.10970596,0.00011879,2]
[328119805,1716896027511,-1000.0,0.0001188,2]
[328119806,1716896027541,-3038.28,0.00011886,2]
[328119807,1716896027738,283.9538657,0.00011596,2]
[328119812,1716896388354,541.74,9.951e-05,2]
[328120066,1716896943391,514.65,9.883e-05,2]
[328120075,1716897031752,-782.79118894,0.00011795,2]
[328120076,1716897031762,-200.0,0.00011796,2]
[328120077,1716897031771,-250.0,0.00011796,2]
[328120078,1716897031780,-23890.0,0.000118,2]
[328120079,1716897031789,-800.0,0.00011803,2]
[328120080,1716897031798,-2024.84,0.00011807,2]
[328120081,1716897031807,-200.0,0.00011867,2]
[328120082,1716897031816,-182.49,0.00011873,2]
[328120083,1716897031826,-185.63,0.00011877,2]
[328120084,1716897031835,-155.14,0.00011884,2]
[328120085,1716897031849,-514.65,0.00012146,2]
[328120086,1716897031859,-13450.23,0.00012146,2]
[328120087,1716897031868,-299.99,0.00012146,2]
[328120088,1716897031877,-150.0,0.00012643,2]
[328120089,1716897031887,-150.99,0.00012643,2]
[328120090,1716897031896,-499.99,0.00012643,2]
[328120091,1716897031906,-150.0,0.00012648,2]
[328120092,1716897031915,-1382.72,0.00012648,2]
[328120093,1716897031924,-150.0,0.00012654,2]
[328120094,1716897031933,-150.0,0.00012656,2]
[328120095,1716897031941,-150.0,0.00012657,2]
[328120096,1716897031950,-150.0,0.00012661,2]
[328120097,1716897031959,-150.0,0.00012686,2]
[328120098,1716897031968,-150.0,0.00012687,2]
[328120099,1716897031977,-150.0,0.00012699,2]
[328120100,1716897031986,-150.0,0.00012699,2]
[328120101,1716897031995,-150.0,0.00012705,2]
[328120102,1716897032004,-150.0,0.00012711,2]
[328120103,1716897032012,-150.0,0.00012712,2]
[328120104,1716897032022,-150.0,0.00012712,2]
[328120105,1716897032031,-150.0,0.00012717,2]
[328120106,1716897032039,-150.0,0.00012717,2]
[328120107,1716897032048,-150.0,0.00012722,2]
[328120108,1716897032057,-150.0,0.00012724,2]
[328120109,1716897032066,-150.0,0.00012732,2]
[328120110,1716897032075,-150.0,0.00012733,2]
[328120111,1716897032084,-150.0,0.00012735,2]
[328120112,1716897032097,-150.0,0.00012738,2]
[328120113,1716897032106,-150.0,0.0001274,2]
[328120114,1716897032115,-150.0,0.00012741,2]
[328120115,1716897032125,-150.0,0.00012741,2]
[328120116,1716897032135,-150.0,0.00012745,2]
[328120117,1716897032145,-150.0,0.00012746,2]
[328120118,1716897032155,-150.0,0.00012747,2]
[328120119,1716897032165,-300.0,0.00012751,2]
[328120121,1716897032175,-150.0,0.00012754,2]
[328120123,1716897032184,-150.0,0.00012758,2]
[328120126,1716897032194,-150.0,0.00012761,2]
[328120128,1716897032204,-300.0,0.00012762,2]
[328120130,1716897032214,-150.0,0.00012763,2]
[328120132,1716897032223,-150.0,0.00012764,2]
[328120134,1716897032232,-150.0,0.00012768,2]
[328120136,1716897032240,-300.0,0.00012773,2]
[328120138,1716897032249,-150.0,0.00012775,2]
[328120140,1716897032259,-150.0,0.00012777,2]
[328120142,1716897032268,-150.0,0.00012779,2]
[328120144,1716897032277,-150.0,0.0001278,2]
[328120146,1716897032286,-150.0,0.0001278,2]
[328120148,1716897032295,-150.0,0.00012782,2]
[328120150,1716897032308,-150.0,0.00012782,2]
[328120151,1716897032317,-300.0,0.00012782,2]
[328120152,1716897032327,-300.0,0.00012787,2]
[328120153,1716897032336,-150.0,0.00012789,2]
[328120154,1716897032348,-150.0,0.0001279,2]
[328120155,1716897032357,-150.0,0.00012795,2]
[328120156,1716897032366,-12010.9499,0.000128,2]
[328120157,1716897032375,-150.0,0.00012802,2]
[328120158,1716897032384,-150.0,0.00012808,2]
[328120159,1716897032393,-150.0,0.00012811,2]
[328120160,1716897032402,-150.0,0.00012814,2]
[328120161,1716897032412,-150.0,0.00012815,2]
[328120162,1716897032421,-300.0,0.00012816,2]
[328120163,1716897032430,-150.0,0.00012816,2]
[328120164,1716897032440,-150.0,0.00012817,2]
[328120165,1716897032449,-300.0,0.00012822,2]
[328120166,1716897032458,-1500.0,0.00012823,2]
[328120167,1716897032468,-150.0,0.00012823,2]
[328120168,1716897032477,-150.0,0.00012823,2]
[328120169,1716897032487,-150.0,0.00012823,2]
[328120170,1716897032496,-150.0,0.00012823,2]
[328120171,1716897032506,-150.0,0.00012826,2]
[328120172,1716897032515,-150.0,0.00012828,2]
[328120173,1716897032524,-150.0,0.00012829,2]
[328120174,1716897032534,-150.0,0.00012833,2]
[328120175,1716897032544,-623.34807594,0.00012842,2]
[328120176,1716897032553,-150.0,0.00012843,2]
[328120177,1716897032562,-1500.0,0.00012851,2]
[328120178,1716897032571,-150.0,0.00012856,2]
[328120179,1716897032580,-150.0,0.00012858,2]
[328120180,1716897032592,-150.0,0.00012858,2]
[328120181,1716897032601,-150.0,0.0001286,2]
[328120182,1716897032610,-150.0,0.00012862,2]
[328120183,1716897032619,-150.0,0.00012862,2]
[328120184,1716897032628,-150.0,0.00012865,2]
[328120185,1716897032637,-150.0,0.00012867,2]
[328120186,1716897032647,-150.0,0.00012867,2]
[328120187,1716897032656,-150.0,0.00012868,2]
[328120188,1716897032672,-150.0,0.00012869,2]
[328120189,1716897032682,-150.0,0.0001287,2]
[328120190,1716897032691,-2271.8447,0.0001287,2]
[328120191,1716897032700,-150.0,0.00012871,2]
[328120192,1716897032710,-150.0,0.00012873,2]
[328120193,1716897032719,-150.0,0.00012873,2]
[328120194,1716897032729,-150.0,0.00012873,2]
[328120195,1716897032738,-150.0,0.00012874,2]
[328120196,1716897032747,-150.0,0.00012876,2]
[328120197,1716897032756,-150.0,0.00012878,2]
[328120198,1716897032765,-150.0,0.00012882,2]
[328120199,1716897032774,-150.0,0.00012883,2]
[328120200,1716897032784,-150.0,0.00012884,2]
[328120201,1716897032793,-150.0,0.00012884,2]
[328120202,1716897032802,-1500.0,0.00012885,2]
[328120203,1716897032811,-150.0,0.00012888,2]
[328120204,1716897032820,-500.0,0.00012896,2]
[328120205,1716897032829,-4002.16701032,0.00012899,2]
[328120206,1716897032839,-158.43787398,0.000129,2]
[328120207,1716897032850,-10700.6637,0.000129,2]
[328120208,1716897032860,-180.85088981,0.000129,2]
[328120209,1716897032869,-150.0,0.000129,2]
[328120210,1716897032878,-300.75,0.000129,2]
[328120211,1716897032887,-207.71,0.000129,2]
[328120212,1716897032896,-831.4,0.000129,2]
[328120213,1716897032905,-7500.0,0.000129,2]
[328120214,1716897032914,-1741.34,0.000129,2]
[328120215,1716897032923,-421.16,0.000129,2]
[328120216,1716897032932,-195.07618324,0.000129,2]
[328120217,1716897032942,-10463.19206642,0.000129,2]
[328120218,1716897032951,-1844.11042046,0.000129,2]
[328120219,1716897032960,-198.75094802,0.000129,2]
[328120220,1716897032970,-150.0,0.00012901,2]
[328120221,1716897032979,-150.0,0.00012903,2]
[328120222,1716897032988,-150.0,0.00012904,2]
[328120223,1716897032998,-150.0,0.00012907,2]
[328120224,1716897033007,-150.0,0.00012911,2]
[328120225,1716897033016,-150.0,0.00012911,2]
[328120226,1716897033026,-301.02765778,0.00012918,2]
[328120227,1716897033035,-150.0,0.0001292,2]
[328120228,1716897033044,-150.0,0.00012921,2]
[328120229,1716897033054,-150.0,0.00012924,2]
[328120230,1716897033063,-150.0,0.00012943,2]
[328120231,1716897033072,-150.0,0.00012944,2]
[328120232,1716897033082,-1500.0,0.00012945,2]
[328120233,1716897033094,-150.0,0.00012946,2]
[328120234,1716897033103,-169.51689573,0.00012962,2]
[328120235,1716897033113,-300.0,0.00012968,2]
[328120236,1716897033122,-1500.0,0.00012983,2]
[328120237,1716897033131,-3015.6226387,0.00012989,2]
[328120238,1716897033140,-238.9165088,0.00012989,2]
[328120239,1716897033149,-7861.9254851,0.00012989,2]
[328120240,1716897033159,-434.1123134,0.00012989,2]
[328120241,1716897033168,-528.7886207,0.00012989,2]
[328120242,1716897033177,-163.18099661,0.0001299,2]
[328120243,1716897033186,-151.41,0.0001299,2]
[328120244,1716897033196,-3097.8258963,0.00012991,2]
[328120245,1716897033205,-3180.0291539,0.00012991,2]
[328120246,1716897033215,-245.4291656,0.00012991,2]
[328120247,1716897033224,-251.9418224,0.00012991,2]
[328120248,1716897033234,-8052.7197735,0.00012991,2]
[328120249,1716897033243,-8243.5140619,0.00012991,2]
[328120250,1716897033252,-444.6474107,0.00012991,2]
[328120251,1716897033262,-455.182508,0.00012991,2]
[328120252,1716897033271,-541.6213356,0.00012991,2]
[328120253,1716897033280,-554.4540505,0.00012991,2]
[328120254,1716897033290,-286.0,0.00012998,2]
[328120255,1716897033301,-6948.52137359,0.00012998,2]
[328120256,1716897033310,-963.96545382,0.00012998,2]
[328120257,1716897033319,-1527.20049393,0.00012998,2]
[328120258,1716897033329,-268.55232379,0.00012998,2]
[328120259,1716897033339,-1274.02294122,0.00012998,2]
[328120260,1716897033352,-543.37124184,0.00012999,2]
[328120261,1716897033362,-175.58109207,0.00012999,2]
[328120262,1716897033372,-31902.20582754,0.00013,2]
[328120263,1716897033386,-4799.4,0.00013,2]
[328120264,1716897033398,-12049.53630709,0.00013,2]
[328120265,1716897033414,-2001.76069057,0.00013,2]
[328120266,1716897033471,-1280.56006859,0.00013,2]
[328120267,1716897033483,-67469.00000008,0.00013,2]
[328120268,1716897033499,-605.45209922,0.00013,2]
[328120269,1716897033511,-9076.35471616,0.00013,2]
[328120270,1716897033523,-3410.39593815,0.00013,2]
[328120271,1716897033535,-393.9,0.00013,2]
[328120272,1716897033548,-505093.46755109,0.00013,2]
[328120273,1716897033559,-8238.61441017,0.00013,2]
[328120274,1716897033571,-1414.36815207,0.00013,2]
[328120276,1716897038020,-504.27637083,0.00013,2]
[328120277,1716897038034,-4740.37922862,0.00013,2]
[328120278,1716897038048,-37616.033428,0.00013,2]
[328120279,1716897038060,-958591.16349942,0.00013,2]
[328120280,1716897038084,-1072.67884402,0.00013,2]
[328120281,1716897038096,-22566.14939622,0.00013,2]
[328120382,1716897040404,-11029.16038117,0.00013,2]
[328120383,1716897040477,-1978.8029317,0.00013,2]
[328120384,1716897040493,-41712.96097088,0.00013,2]
[328120385,1716897040544,-1130.54686907,0.00013,2]
[328120386,1716897040556,-930.0,0.00013,2]
[328120387,1716897040568,-567.25098195,0.00013,2]
[328120399,1716897042801,-1122.29959368,0.0001274,2]
[328120400,1716897042810,-932.46040632,0.00013,2]
[328120401,1716897042926,-32728.008,0.00013,2]
[328120402,1716897043109,-2726.28524115,0.00013,2]
[328120403,1716897043176,-3365.38072102,0.00013,2]
[328120415,1716897045918,-155.0,0.00012999,2]
[328120416,1716897045928,-182.08969517,0.00013,2]
[328120417,1716897046110,-2099.01616,0.00013,2]
[328120418,1716897046122,-1369.86,0.00013,2]
[328120419,1716897057172,11704.33792,9.883e-05,2]
[328120421,1716897125043,5270.87368433,9.883e-05,2]
[328120423,1716897388339,199.62,0.00010124,2]
[328120424,1716897522428,529.14,9.83e-05,2]
[328120427,1716898164560,502.68,9.621e-05,2]
[328120428,1716898173860,-155.0,0.00011509,2]
[328120429,1716898173884,-517.03487054,0.0001151,2]
[328120430,1716898173908,-2003.2277311,0.0001151,2]
[328120431,1716898173929,-782.79118894,0.00011511,2]
[328120432,1716898173951,-150.0,0.00011513,2]
[328120433,1716898183198,-250.0,0.00011514,2]
[328120434,1716898183220,-23890.0,0.00011514,2]
[328120439,1716898197234,-250.0,0.00011549,2]
[328120440,1716898197257,-1638.91,0.0001155,2]
[328120441,1716898197279,-640.0,0.00011578,2]
[328120456,1716898231959,-185.63,0.00011596,2]
[328120458,1716898231968,-909.09364763,0.00011653,2]
[328120460,1716898232018,-1422.81635237,0.00011653,2]
[328120461,1716898232027,-499.99,0.00011717,2]
[328120462,1716898232036,-167.29,0.00011736,2]
[328120463,1716898232047,-360.0,0.00011784,2]
[328120464,1716898232060,-156.95,0.00011809,2]
[328120465,1716898232069,-502.68,0.00011884,2]
[328120466,1716898232078,-156.95,0.00011886,2]
[328120467,1716898232090,-156.95,0.00011963,2]
[328120468,1716898232101,-156.95,0.0001204,2]
[328120469,1716898232111,-156.95,0.00012116,2]
[328120470,1716898232120,-156.95,0.00012193,2]
[328120471,1716898232131,-156.95,0.0001227,2]
[328120472,1716898232140,-156.95,0.00012347,2]
[328120473,1716898232150,-156.95,0.00012424,2]
[328120474,1716898232159,-1709.67364763,0.00012575,2]
[328120475,1716898232171,-700.0,0.00012575,2]
[328120476,1716898232183,-485.24635237,0.00012575,2]
[328120477,1716898232193,-573.83364785,0.00012579,2]
[328120478,1716898232214,-2321.08635215,0.00012579,2]
[328120479,1716898232224,-2894.92,0.00012582,2]
[328120480,1716898232233,-1848.64606524,0.00012585,2]
[328120481,1716898232245,-1046.27393476,0.00012585,2]
[328120482,1716898232255,-2894.92,0.00012589,2]
[328120483,1716898232264,-1294.63136924,0.00012592,2]
[328120484,1716898232276,-1600.28863076,0.00012592,2]
[328120485,1716898232285,-2894.92,0.00012595,2]
[328120486,1716898232295,-1632.01936924,0.00012599,2]
[328120487,1716898232307,-1262.90063076,0.00012599,2]
[328120488,1716898232316,-2894.92,0.00012602,2]
[328120489,1716898232326,-664.86936924,0.00012605,2]
[328120490,1716898232338,-550.46035353,0.00012605,2]
[328120491,1716898232349,-1679.59027723,0.00012605,2]
[328120492,1716898232358,-2894.92,0.00012608,2]
[328120493,1716898232368,-2894.92,0.00012612,2]
[328120494,1716898232377,-2894.92,0.00012615,2]
[328120496,1716898232387,-2894.92,0.00012618,2]
[328120498,1716898232396,-2894.92,0.00012622,2]
[328120499,1716898232405,-2894.92,0.00012625,2]
[328120500,1716898232414,-2894.92,0.00012628,2]
[328120501,1716898232423,-2894.92,0.00012632,2]
[328120502,1716898232432,-2894.92,0.00012635,2]
[328120503,1716898232441,-2894.92,0.00012638,2]
[328120504,1716898232450,-195.0,0.00012664,2]
[328120505,1716898232459,-172.25,0.00012751,2]
[328120506,1716898232469,-981.377,0.00012858,2]
[328120507,1716898232478,-17370.629,0.00012858,2]
[328120508,1716898232487,-1062.0,0.00012858,2]
[328120509,1716898232495,-1657.29072985,0.00012867,2]
[328120510,1716898232505,-232.39419306,0.00012869,2]
[328120511,1716898232514,-2608.153,0.00012891,2]
[328120512,1716898232523,-500.0,0.00012896,2]
[328120513,1716898232532,-988.2065,0.000129,2]
[328120514,1716898232541,-301.21,0.000129,2]
[328120515,1716898232550,-1000.0,0.000129,2]
[328120516,1716898232560,-2982.47738103,0.000129,2]
[328120517,1716898232576,-619.47292833,0.000129,2]
[328120518,1716898232587,-624.24378634,0.000129,2]
[328120519,1716898232596,-747.37086189,0.000129,2]
[328120520,1716898232606,-247.24254006,0.000129,2]
[328120521,1716898232616,-4435.97429669,0.000129,2]
[328120522,1716898232625,-318.65153041,0.000129,2]
[328120523,1716898232634,-35.94337182,0.000129,2]
[328120524,1716898232646,-159.98007181,0.000129,2]
[328120525,1716898232655,-640.54911729,0.00012989,2]
[328120526,1716898232666,-154.35229091,0.00012989,2]
[328120527,1716898232676,-388.0999324,0.00012989,2]
[328120528,1716898232685,-318.613058,0.00012989,2]
[328120529,1716898232695,-5696.3032807,0.00012989,2]
[328120530,1716898232704,-1615.48076253,0.0001299,2]
[328120531,1716898232713,-150.94,0.0001299,2]
[328120532,1716898232723,-348.8838555,0.00012991,2]
[328120533,1716898232732,-309.6677786,0.00012991,2]
[328120534,1716898232742,-286.4183753,0.00012991,2]
[328120535,1716898232751,-254.2236926,0.00012991,2]
[328120536,1716898232760,-5811.68963,0.00012991,2]
[328120537,1716898232770,-5927.0759792,0.00012991,2]
[328120538,1716898232779,-707.19968745,0.00012998,2]
[328120539,1716898232788,-2396.43407872,0.00012998,2]
[328120540,1716898232798,-155.94445731,0.00012998,2]
[328120541,1716898232807,-161.73963544,0.00012998,2]
[328120542,1716898232816,-408.52002494,0.00012998,2]
[328120543,1716898232825,-3286.97999917,0.00012998,2]
[328120544,1716898232836,-155.0,0.00012998,2]
[328120545,1716898232846,-441.68283259,0.00012998,2]
[328120546,1716898232855,-782.79118894,0.00012998,2]
[328120547,1716898232864,-1998.7727517,0.00012998,2]
[328120548,1716898232873,-468.17980544,0.00012998,2]
[328120549,1716898232883,-155.36359889,0.00012998,2]
[328120550,1716898232892,-364.60298157,0.00012999,2]
[328120551,1716898232902,-799.89337506,0.00012999,2]
[328120552,1716898232911,-376710.93342696,0.00013,2]
[328120553,1716898232922,-810.12234657,0.00013,2]
[328120554,1716898232937,-1231.85132041,0.00013,2]
[328120555,1716898232948,-311.84172578,0.00013,2]
[328120556,1716898232964,-4185.1,0.00013,2]
[328120558,1716898237954,-1124.4884745,0.0001274,2]
[328120559,1716898237964,-32641.55914885,0.00013,2]
[328120560,1716898238012,-403.80780873,0.00013,2]
[328120561,1716898238125,-15583.5342498,0.00013,2]
[328120562,1716898238136,-346.7403356,0.00013,2]
[328120563,1716898238183,-3810.73169618,0.00013,2]
[328120564,1716898238194,-986.26889205,0.00013,2]
[328120565,1716898238205,-3804.36369245,0.00013,2]
[328120566,1716898238241,-133939.33068938,0.00013,2]
[328120586,1716898241064,-39125.61,0.00013,2]
[328120587,1716898241340,-693.706875,0.00012991,2]
[328120588,1716898241349,-16566.26630401,0.00013,2]
[328120589,1716898241360,-3174.82,0.00013,2]
[328120590,1716898241373,-26465.58546432,0.00013,2]
[328120701,1716898243100,-1438.23057065,0.00013,2]
[328120702,1716898243158,-357.00000003,0.00013,2]
[328120703,1716898243275,-628.18,0.00013,2]
[328120704,1716898243287,-843.118017,0.00013,2]
[328120705,1716898243299,-345.30254868,0.00013,2]
[328120706,1716898243330,-9556.93674165,0.00013,2]
[328120707,1716898243390,-309376.68009299,0.00013,2]
[328120708,1716898243400,-173971.62887943,0.00013,2]
[328120709,1716898243410,-1985847.28348667,0.00013,2]
[328120710,1716898243557,-136876.0,0.00013,2]
[328120711,1716898243618,-478.200438,0.00013,2]
[328120740,1716898246268,-217.28329032,0.00012869,2]
[328120741,1716898246278,-195.70833097,0.00012999,2]
[328120742,1716898246288,-568.11649097,0.00013,2]
[328120743,1716898246300,-68400.00000007,0.00013,2]
[328120758,1716898426229,167.96,9.416e-05,2]
[328120759,1716898644200,514.12,9.836e-05,2]
[328120760,1716899242682,488.41,9.805e-05,2]
[328120761,1716899353033,-1737.2238,0.00011544,2]
[328120762,1716899354684,5835.640378,0.00011485,2]
[328120763,1716899371363,-1065.28644752,0.00011643,2]
[328120764,1716899378142,85124.18607766,9.805e-05,2]
[328120765,1716899396119,56749.45738511,9.805e-05,2]
[328120766,1716899411896,-2815.94628034,0.00011702,2]
[328120767,1716899411921,-1000.0,0.00011703,2]
[328120768,1716899411944,-150.0,0.00011714,2]
[328120769,1716899416120,45320.98584079,9.805e-05,2]
[328120770,1716899416146,1970.2286468,9.805e-05,2]
[328120771,1716899431295,24638.72274803,9.805e-05,2]
[328120811,1716899432189,-263.47322908,0.00011715,2]
[328120813,1716899432200,-900.96677092,0.00011715,2]
[328120815,1716899432210,-250.0,0.00011715,2]
[328120817,1716899432220,-2816.43920292,0.00011715,2]
[328120819,1716899432231,-1728.0087192,0.00011715,2]
[328120822,1716899432242,-9100.19353499,0.00011715,2]
[328120823,1716899432356,-615.77052,0.00011715,2]
[328120824,1716899432367,-4645.49553617,0.00011715,2]
[328120825,1716899432438,-565.2208109,0.00011715,2]
[328120826,1716899432452,-1203.63841064,0.00011715,2]
[328120827,1716899432523,-561.10801134,0.00011715,2]
[328120828,1716899432538,-1898.39525384,0.00011715,2]
[328120829,1716899432548,-167.29,0.00011719,2]
[328120830,1716899432557,-2981.40876184,0.00011767,2]
[328120831,1716899432567,-167.84,0.0001177,2]
[328120832,1716899432576,-160.36,0.00011803,2]
[328120833,1716899432586,-488.41,0.00012069,2]
[328120834,1716899432596,-164.52176789,0.00012535,2]
[328120835,1716899432604,-150.0,0.00012543,2]
[328120836,1716899432614,-150.0,0.00012571,2]
[328120837,1716899432623,-150.0,0.00012583,2]
[328120838,1716899432633,-150.0,0.00012592,2]
[328120839,1716899432642,-150.0,0.00012601,2]
[328120840,1716899432651,-150.0,0.00012604,2]
[328120841,1716899432662,-150.0,0.00012607,2]
[328120842,1716899432673,-150.0,0.00012614,2]
[328120843,1716899432682,-150.0,0.00012618,2]
[328120846,1716899432691,-150.0,0.00012627,2]
[328120847,1716899432875,-150.0,0.00012632,2]
[328120848,1716899432884,-150.0,0.00012642,2]
[328120849,1716899432893,-150.0,0.00012649,2]
[328120850,1716899432902,-150.0,0.00012654,2]
[328120851,1716899432912,-150.0,0.00012663,2]
[328120852,1716899432923,-150.0,0.00012666,2]
[328120853,1716899432933,-150.0,0.0001269,2]
[328120854,1716899432942,-150.0,0.00012691,2]
[328120855,1716899432952,-150.0,0.00012692,2]
[328120856,1716899432962,-150.0,0.00012697,2]
[328120857,1716899432971,-150.0,0.00012697,2]
[328120858,1716899432981,-150.0,0.00012704,2]
[328120859,1716899432990,-150.0,0.00012709,2]
[328120860,1716899432999,-150.0,0.00012714,2]
[328120861,1716899433009,-150.0,0.00012717,2]
[328120862,1716899433018,-150.0,0.00012717,2]
[328120863,1716899433027,-150.0,0.00012723,2]
[328120864,1716899433036,-150.0,0.00012723,2]
[328120865,1716899433046,-150.0,0.00012725,2]
[328120866,1716899433055,-150.0,0.00012726,2]
[328120867,1716899433065,-150.0,0.00012726,2]
[328120868,1716899433075,-150.0,0.00012733,2]
[328120869,1716899433084,-150.0,0.00012737,2]
[328120870,1716899433094,-150.0,0.00012737,2]
[328120871,1716899433103,-1030.24350931,0.0001274,2]
[328120872,1716899433112,-150.0,0.0001274,2]
[328120873,1716899433122,-150.0,0.00012751,2]
[328120874,1716899433131,-150.0,0.00012765,2]
[328120875,1716899433141,-300.0,0.00012771,2]
[328120876,1716899433150,-150.0,0.00012776,2]
[328120877,1716899433160,-150.0,0.00012779,2]
[328120878,1716899433170,-150.0,0.00012813,2]
[328120879,1716899433180,-150.0,0.00012819,2]
[328120880,1716899433189,-150.0,0.00012821,2]
[328120881,1716899433198,-150.0,0.00012828,2]